[Event "Titled Tuesday Blitz November 07 Late 2023"]
[White "Maksimovic, Bojan"]
[Black "Indjic, Aleksandar"]
[WhiteFideId "14408120"]
[BlackFideId "911925"]
[WhiteElo "2744"]
[BlackElo "2921"]
[Result "1/2-1/2"]
[Round "8"]
[TimeControl "180+1"]
[Date "2023.11.07"]
[WhiteClock "0:00:25"]
[BlackClock "0:00:32"]
[Board "12"]

1. Nf3 {[%clk 0:03:00]}  d5 {[%clk 0:02:59]} 2. g3 {[%clk 0:03:00]}  Bg4 {[%clk 0:03:00]} 3. Bg2 {[%clk 0:03:01]}  e6 {[%clk 0:02:59]} 4. h3 {[%clk 0:03:00]}  Bh5 {[%clk 0:02:56]} 5. O-O {[%clk 0:02:55]}  c6 {[%clk 0:02:55]} 6. d4 {[%clk 0:02:51]}  Nd7 {[%clk 0:02:55]} 7. c4 {[%clk 0:02:52]}  Bxf3 {[%clk 0:02:52]} 8. Bxf3 {[%clk 0:02:50]}  f5 {[%clk 0:02:53]} 9. Nc3 {[%clk 0:02:44]}  Ngf6 {[%clk 0:02:52]} 10. Qc2 {[%clk 0:02:39]}  Bd6 {[%clk 0:02:47]} 11. cxd5 {[%clk 0:02:39]}  cxd5 {[%clk 0:02:46]} 12. Bg5 {[%clk 0:02:32]}  O-O {[%clk 0:02:42]} 13. Rac1 {[%clk 0:02:31]}  a6 {[%clk 0:02:39]} 14. e3 {[%clk 0:02:26]}  h6 {[%clk 0:02:37]} 15. Bxf6 {[%clk 0:02:26]}  Nxf6 {[%clk 0:02:38]} 16. Qb3 {[%clk 0:02:24]}  b5 {[%clk 0:02:27]} 17. a4 {[%clk 0:02:21]}  b4 {[%clk 0:02:27]} 18. Ne2 {[%clk 0:02:20]}  g5 {[%clk 0:02:21]} 19. Rc6 {[%clk 0:02:14]}  h5 {[%clk 0:02:17]} 20. Bg2 {[%clk 0:02:02]}  a5 {[%clk 0:01:58]} 21. Qd3 {[%clk 0:01:58]}  Ra7 {[%clk 0:01:56]} 22. Rfc1 {[%clk 0:01:56]}  Qe7 {[%clk 0:01:42]} 23. f4 {[%clk 0:01:34]}  gxf4 {[%clk 0:01:29]} 24. gxf4 {[%clk 0:01:34]}  Kh7 {[%clk 0:01:26]} 25. Kh2 {[%clk 0:01:32]}  Rb7 {[%clk 0:01:19]} 26. Bf3 {[%clk 0:01:19]}  Rc7 {[%clk 0:01:18]} 27. Rxc7 {[%clk 0:01:13]}  Bxc7 {[%clk 0:01:19]} 28. Rg1 {[%clk 0:00:58]}  h4 {[%clk 0:01:12]} 29. Rg5 {[%clk 0:00:56]}  Ne4 {[%clk 0:01:11]} 30. Rg2 {[%clk 0:00:53]}  Nd6 {[%clk 0:00:57]} 31. b3 {[%clk 0:00:51]}  Rg8 {[%clk 0:00:55]} 32. Rxg8 {[%clk 0:00:48]}  Kxg8 {[%clk 0:00:56]} 33. Qa6 {[%clk 0:00:48]}  Bd8 {[%clk 0:00:52]} 34. Qc6 {[%clk 0:00:41]}  Qc7 {[%clk 0:00:51]} 35. Qxc7 {[%clk 0:00:35]}  Bxc7 {[%clk 0:00:52]} 36. Nc1 {[%clk 0:00:34]}  Ne4 {[%clk 0:00:45]} 37. Kg2 {[%clk 0:00:32]}  Nd2 {[%clk 0:00:36]} 38. Kf2 {[%clk 0:00:28]}  Bd6 {[%clk 0:00:35]} 39. Ke2 {[%clk 0:00:27]}  Ne4 {[%clk 0:00:35]} 40. Nd3 {[%clk 0:00:25]}  Nf6 {[%clk 0:00:35]} 41. Kd2 {[%clk 0:00:25]}  Kf7 {[%clk 0:00:32]} 42. Ke2 {[%clk 0:00:25]} 1/2-1/2


[Site "https://www.chess.com"]

[Event "Titled Tuesday Blitz November 07 Late 2023"]
[White "Pranav, V"]
[Black "Goltsev, Dmitry"]
[WhiteFideId "25060783"]
[BlackFideId "24176710"]
[WhiteElo "3057"]
[BlackElo "2743"]
[Result "1-0"]
[Round "8"]
[TimeControl "180+1"]
[Date "2023.11.07"]
[WhiteClock "0:01:32"]
[BlackClock "0:00:00"]
[Board "13"]

1. Nf3 {[%clk 0:03:00]}  d5 {[%clk 0:02:59]} 2. g3 {[%clk 0:02:58]}  c6 {[%clk 0:03:00]} 3. Bg2 {[%clk 0:02:59]}  Nf6 {[%clk 0:03:00]} 4. O-O {[%clk 0:02:58]}  g6 {[%clk 0:03:01]} 5. d3 {[%clk 0:02:59]}  Bg7 {[%clk 0:03:01]} 6. Nbd2 {[%clk 0:03:00]}  O-O {[%clk 0:03:02]} 7. e4 {[%clk 0:03:01]}  dxe4 {[%clk 0:03:02]} 8. dxe4 {[%clk 0:03:01]}  Nbd7 {[%clk 0:03:03]} 9. Qe2 {[%clk 0:03:02]}  e5 {[%clk 0:03:01]} 10. Rd1 {[%clk 0:03:02]}  Qe7 {[%clk 0:02:59]} 11. b3 {[%clk 0:03:03]}  b6 {[%clk 0:02:52]} 12. a4 {[%clk 0:03:02]}  a5 {[%clk 0:02:50]} 13. Ba3 {[%clk 0:03:02]}  Nc5 {[%clk 0:02:50]} 14. Qe3 {[%clk 0:02:56]}  Ba6 {[%clk 0:02:37]} 15. Bxc5 {[%clk 0:02:55]}  bxc5 {[%clk 0:02:35]} 16. Bf1 {[%clk 0:02:55]}  Bxf1 {[%clk 0:02:33]} 17. Rxf1 {[%clk 0:02:53]}  Ng4 {[%clk 0:02:28]} 18. Qe2 {[%clk 0:02:50]}  f5 {[%clk 0:02:25]} 19. Nc4 {[%clk 0:02:49]}  f4 {[%clk 0:02:17]} 20. Rad1 {[%clk 0:02:46]}  h5 {[%clk 0:02:04]} 21. Rd3 {[%clk 0:02:44]}  Rf7 {[%clk 0:01:57]} 22. Nh4 {[%clk 0:02:32]}  Kh7 {[%clk 0:01:52]} 23. Rd6 {[%clk 0:02:27]}  Bf6 {[%clk 0:01:44]} 24. Nf3 {[%clk 0:02:26]}  Raf8 {[%clk 0:01:40]} 25. Rxc6 {[%clk 0:02:15]}  fxg3 {[%clk 0:01:40]} 26. fxg3 {[%clk 0:02:15]}  Qd7 {[%clk 0:01:16]} 27. Rd6 {[%clk 0:02:07]}  Qc7 {[%clk 0:01:07]} 28. Rd5 {[%clk 0:02:02]}  Qe7 {[%clk 0:00:34]} 29. Nd6 {[%clk 0:01:56]}  Rg7 {[%clk 0:00:26]} 30. h3 {[%clk 0:01:55]}  Nh6 {[%clk 0:00:25]} 31. Qd3 {[%clk 0:01:54]}  g5 {[%clk 0:00:16]} 32. Ne1 {[%clk 0:01:51]}  g4 {[%clk 0:00:15]} 33. h4 {[%clk 0:01:51]}  Bxh4 {[%clk 0:00:11]} 34. Rxf8 {[%clk 0:01:50]}  Qxf8 {[%clk 0:00:11]} 35. gxh4 {[%clk 0:01:51]}  g3 {[%clk 0:00:12]} 36. Qf3 {[%clk 0:01:50]}  Qb8 {[%clk 0:00:01]} 37. Nf5 {[%clk 0:01:45]}  Qb4 {[%clk 0:00:02]} 38. Nd3 {[%clk 0:01:41]}  Qd2 {[%clk 0:00:02]} 39. Nxg7 {[%clk 0:01:36]}  Qh2+ {[%clk 0:00:01]} 40. Kf1 {[%clk 0:01:37]}  Ng4 {[%clk 0:00:02]} 41. Qf5+ {[%clk 0:01:35]}  Kh6 {[%clk 0:00:02]} 42. Rd6+ {[%clk 0:01:36]}  Kxg7 {[%clk 0:00:02]} 43. Rd7+ {[%clk 0:01:36]}  Kg8 {[%clk 0:00:00]} 44. Qg6+ {[%clk 0:01:32]} 1-0


[Site "https://www.chess.com"]

[Event "Titled Tuesday Blitz November 07 Late 2023"]
[White "Zeltsan, Joseph"]
[Black "Ibarra Jerez, Jose Carlos"]
[WhiteFideId "30932980"]
[BlackFideId "2226332"]
[WhiteElo "2693"]
[BlackElo "3000"]
[Result "0-1"]
[Round "8"]
[TimeControl "180+1"]
[Date "2023.11.07"]
[WhiteClock "0:00:16"]
[BlackClock "0:00:07"]
[Board "15"]

1. e4 {[%clk 0:03:00]}  c5 {[%clk 0:03:00]} 2. Nf3 {[%clk 0:03:00]}  Nc6 {[%clk 0:03:00]} 3. Bb5 {[%clk 0:02:59]}  e6 {[%clk 0:03:00]} 4. O-O {[%clk 0:02:59]}  Nge7 {[%clk 0:02:59]} 5. Re1 {[%clk 0:03:00]}  Nd4 {[%clk 0:02:59]} 6. Nxd4 {[%clk 0:02:57]}  cxd4 {[%clk 0:03:00]} 7. c3 {[%clk 0:02:57]}  a6 {[%clk 0:03:00]} 8. Bf1 {[%clk 0:02:56]}  Nc6 {[%clk 0:03:00]} 9. cxd4 {[%clk 0:02:47]}  Nxd4 {[%clk 0:02:59]} 10. Nc3 {[%clk 0:02:48]}  Bc5 {[%clk 0:02:57]} 11. d3 {[%clk 0:02:48]}  O-O {[%clk 0:02:55]} 12. Be3 {[%clk 0:02:48]}  d6 {[%clk 0:02:53]} 13. Rc1 {[%clk 0:02:48]}  e5 {[%clk 0:02:41]} 14. Kh1 {[%clk 0:02:46]}  Be6 {[%clk 0:02:39]} 15. f4 {[%clk 0:02:40]}  exf4 {[%clk 0:02:31]} 16. Bxf4 {[%clk 0:02:39]}  b5 {[%clk 0:02:12]} 17. Be3 {[%clk 0:02:27]}  Qb6 {[%clk 0:01:55]} 18. Qd2 {[%clk 0:02:25]}  f5 {[%clk 0:01:48]} 19. exf5 {[%clk 0:02:15]}  Bxf5 {[%clk 0:01:40]} 20. Nd5 {[%clk 0:02:14]}  Qb7 {[%clk 0:01:37]} 21. Ne7+ {[%clk 0:01:20]}  Qxe7 {[%clk 0:01:32]} 22. Bxd4 {[%clk 0:01:20]}  Qf7 {[%clk 0:01:16]} 23. Bxc5 {[%clk 0:01:14]}  dxc5 {[%clk 0:01:17]} 24. Rxc5 {[%clk 0:01:15]}  Be6 {[%clk 0:01:15]} 25. Be2 {[%clk 0:01:00]}  Bd5 {[%clk 0:01:06]} 26. Rxd5 {[%clk 0:00:48]}  Qxd5 {[%clk 0:01:05]} 27. Bf3 {[%clk 0:00:48]}  Rxf3 {[%clk 0:01:01]} 28. gxf3 {[%clk 0:00:47]}  Qxf3+ {[%clk 0:01:01]} 29. Qg2 {[%clk 0:00:47]}  Qf8 {[%clk 0:01:01]} 30. Rf1 {[%clk 0:00:40]}  Qe8 {[%clk 0:00:57]} 31. Qd5+ {[%clk 0:00:34]}  Kh8 {[%clk 0:00:56]} 32. Kg2 {[%clk 0:00:33]}  Rd8 {[%clk 0:00:54]} 33. Qe4 {[%clk 0:00:33]}  Qd7 {[%clk 0:00:49]} 34. d4 {[%clk 0:00:25]}  h6 {[%clk 0:00:47]} 35. Rf4 {[%clk 0:00:25]}  Qd6 {[%clk 0:00:37]} 36. d5 {[%clk 0:00:21]}  Qc5 {[%clk 0:00:24]} 37. Rf5 {[%clk 0:00:18]}  Qc1 {[%clk 0:00:21]} 38. Qe5 {[%clk 0:00:15]}  Qc2+ {[%clk 0:00:18]} 39. Rf2 {[%clk 0:00:15]}  Qg6+ {[%clk 0:00:18]} 40. Kh1 {[%clk 0:00:14]}  Re8 {[%clk 0:00:16]} 41. Qg3 {[%clk 0:00:10]}  Qe4+ {[%clk 0:00:16]} 42. Qf3 {[%clk 0:00:10]}  Qb1+ {[%clk 0:00:15]} 43. Kg2 {[%clk 0:00:10]}  Qxa2 {[%clk 0:00:14]} 44. d6 {[%clk 0:00:10]}  Qe6 {[%clk 0:00:14]} 45. Qc6 {[%clk 0:00:10]}  Qg6+ {[%clk 0:00:12]} 46. Kf1 {[%clk 0:00:11]}  Qd3+ {[%clk 0:00:11]} 47. Kg2 {[%clk 0:00:11]}  Qg6+ {[%clk 0:00:11]} 48. Kf1 {[%clk 0:00:12]}  Rd8 {[%clk 0:00:12]} 49. Rd2 {[%clk 0:00:12]}  Rf8+ {[%clk 0:00:11]} 50. Ke2 {[%clk 0:00:12]}  Qg4+ {[%clk 0:00:10]} 51. Kd3 {[%clk 0:00:13]}  Rf3+ {[%clk 0:00:09]} 52. Kc2 {[%clk 0:00:13]}  Qf5+ {[%clk 0:00:10]} 53. Kd1 {[%clk 0:00:14]}  Rf1+ {[%clk 0:00:09]} 54. Ke2 {[%clk 0:00:14]}  Rf2+ {[%clk 0:00:09]} 55. Kd1 {[%clk 0:00:14]}  Qb1+ {[%clk 0:00:07]} 56. Qc1 {[%clk 0:00:15]}  Rf1+ {[%clk 0:00:07]} 57. Ke2 {[%clk 0:00:15]}  Qxc1 {[%clk 0:00:08]} 58. d7 {[%clk 0:00:16]}  Qe1+ {[%clk 0:00:08]} 59. Kd3 {[%clk 0:00:16]}  Rf8 {[%clk 0:00:07]} 0-1


[Site "https://www.chess.com"]

[Event "Titled Tuesday Blitz November 07 Late 2023"]
[White "Hong, Andrew"]
[Black "Giroyan, Gary"]
[WhiteFideId "2099438"]
[BlackFideId "680281"]
[WhiteElo "2972"]
[BlackElo "2691"]
[Result "1-0"]
[Round "8"]
[TimeControl "180+1"]
[Date "2023.11.07"]
[WhiteClock "0:00:22"]
[BlackClock "0:00:11"]
[Board "16"]

1. d4 {[%clk 0:03:00]}  Nf6 {[%clk 0:02:59]} 2. Nf3 {[%clk 0:03:00]}  d5 {[%clk 0:02:57]} 3. c4 {[%clk 0:03:00]}  e6 {[%clk 0:02:58]} 4. g3 {[%clk 0:03:00]}  dxc4 {[%clk 0:02:56]} 5. Bg2 {[%clk 0:03:00]}  Nbd7 {[%clk 0:02:56]} 6. O-O {[%clk 0:03:00]}  c6 {[%clk 0:02:57]} 7. a4 {[%clk 0:02:59]}  b6 {[%clk 0:02:55]} 8. Ne5 {[%clk 0:02:58]}  Nxe5 {[%clk 0:02:53]} 9. dxe5 {[%clk 0:02:59]}  Nd5 {[%clk 0:02:54]} 10. Qc2 {[%clk 0:02:58]}  Ba6 {[%clk 0:02:30]} 11. Nd2 {[%clk 0:02:56]}  c3 {[%clk 0:02:23]} 12. Ne4 {[%clk 0:02:47]}  Be7 {[%clk 0:02:21]} 13. bxc3 {[%clk 0:02:41]}  O-O {[%clk 0:02:20]} 14. Rd1 {[%clk 0:02:41]}  Qc7 {[%clk 0:02:20]} 15. Nd6 {[%clk 0:02:41]}  Rad8 {[%clk 0:02:06]} 16. e4 {[%clk 0:02:40]}  Nf6 {[%clk 0:01:59]} 17. exf6 {[%clk 0:02:36]}  Bxd6 {[%clk 0:01:59]} 18. fxg7 {[%clk 0:02:35]}  Kxg7 {[%clk 0:02:00]} 19. Be3 {[%clk 0:02:08]}  Bc4 {[%clk 0:01:52]} 20. Qd2 {[%clk 0:02:04]}  Be5 {[%clk 0:01:44]} 21. Bh6+ {[%clk 0:01:59]}  Kh8 {[%clk 0:01:45]} 22. Qe3 {[%clk 0:01:38]}  Rxd1+ {[%clk 0:01:44]} 23. Rxd1 {[%clk 0:01:39]}  Rd8 {[%clk 0:01:42]} 24. Rc1 {[%clk 0:01:37]}  Qe7 {[%clk 0:01:37]} 25. h4 {[%clk 0:01:34]}  Rd3 {[%clk 0:01:29]} 26. Qe1 {[%clk 0:01:34]}  Rd7 {[%clk 0:01:28]} 27. Bf1 {[%clk 0:01:30]}  Bxf1 {[%clk 0:01:26]} 28. Qxf1 {[%clk 0:01:30]}  Bg7 {[%clk 0:01:26]} 29. Bg5 {[%clk 0:01:29]}  Qc5 {[%clk 0:01:24]} 30. Qa6 {[%clk 0:01:25]}  h6 {[%clk 0:01:06]} 31. Qc8+ {[%clk 0:01:23]}  Kh7 {[%clk 0:01:03]} 32. Qxd7 {[%clk 0:01:23]}  hxg5 {[%clk 0:01:03]} 33. Qxf7 {[%clk 0:01:12]}  gxh4 {[%clk 0:01:01]} 34. Kg2 {[%clk 0:01:10]}  Qe5 {[%clk 0:00:58]} 35. Kf3 {[%clk 0:00:53]}  b5 {[%clk 0:00:23]} 36. Rh1 {[%clk 0:00:28]}  Qf6+ {[%clk 0:00:23]} 37. Qxf6 {[%clk 0:00:28]}  Bxf6 {[%clk 0:00:24]} 38. axb5 {[%clk 0:00:28]}  cxb5 {[%clk 0:00:24]} 39. Ra1 {[%clk 0:00:28]}  hxg3 {[%clk 0:00:18]} 40. Rxa7+ {[%clk 0:00:27]}  Kg6 {[%clk 0:00:19]} 41. Kxg3 {[%clk 0:00:21]}  Bxc3 {[%clk 0:00:18]} 42. f4 {[%clk 0:00:21]}  b4 {[%clk 0:00:17]} 43. Rb7 {[%clk 0:00:21]}  Kf6 {[%clk 0:00:17]} 44. Kf3 {[%clk 0:00:21]}  Kg6 {[%clk 0:00:17]} 45. e5 {[%clk 0:00:20]}  Kf5 {[%clk 0:00:17]} 46. Rf7+ {[%clk 0:00:20]}  Kg6 {[%clk 0:00:17]} 47. Rf6+ {[%clk 0:00:20]}  Kg7 {[%clk 0:00:17]} 48. Rxe6 {[%clk 0:00:21]}  b3 {[%clk 0:00:18]} 49. Rb6 {[%clk 0:00:22]}  b2 {[%clk 0:00:18]} 50. Ke4 {[%clk 0:00:23]}  Kf7 {[%clk 0:00:19]} 51. f5 {[%clk 0:00:23]}  Ke7 {[%clk 0:00:18]} 52. Kd5 {[%clk 0:00:23]}  Kd7 {[%clk 0:00:19]} 53. f6 {[%clk 0:00:24]}  Kc7 {[%clk 0:00:19]} 54. Rb3 {[%clk 0:00:24]}  Kd7 {[%clk 0:00:17]} 55. e6+ {[%clk 0:00:23]}  Kd8 {[%clk 0:00:17]} 56. e7+ {[%clk 0:00:23]}  Kd7 {[%clk 0:00:17]} 57. Rb7+ {[%clk 0:00:22]}  Kc8 {[%clk 0:00:11]} 58. Kc6 {[%clk 0:00:22]} 1-0


[Site "https://www.chess.com"]

[Event "Titled Tuesday Blitz November 07 Late 2023"]
[White "ArtemDyachuk"]
[Black "Rasulov, Vugar"]
[BlackFideId "13402390"]
[WhiteElo "2631"]
[BlackElo "2949"]
[Result "0-1"]
[Round "8"]
[TimeControl "180+1"]
[Date "2023.11.07"]
[WhiteClock "0:00:04"]
[BlackClock "0:00:19"]
[Board "18"]

1. e4 {[%clk 0:03:00]}  e5 {[%clk 0:02:58]} 2. Nf3 {[%clk 0:03:00]}  Nc6 {[%clk 0:02:59]} 3. Bc4 {[%clk 0:03:00]}  Nf6 {[%clk 0:02:59]} 4. d3 {[%clk 0:02:59]}  Be7 {[%clk 0:02:58]} 5. O-O {[%clk 0:02:58]}  O-O {[%clk 0:02:59]} 6. c3 {[%clk 0:02:54]}  d6 {[%clk 0:02:59]} 7. h3 {[%clk 0:02:54]}  Kh8 {[%clk 0:02:57]} 8. Nbd2 {[%clk 0:02:52]}  Ng8 {[%clk 0:02:57]} 9. Re1 {[%clk 0:02:48]}  f5 {[%clk 0:02:57]} 10. exf5 {[%clk 0:02:48]}  Bxf5 {[%clk 0:02:54]} 11. Nf1 {[%clk 0:02:46]}  Nf6 {[%clk 0:02:45]} 12. Ng3 {[%clk 0:02:44]}  Bg6 {[%clk 0:02:32]} 13. d4 {[%clk 0:02:39]}  e4 {[%clk 0:02:30]} 14. Ng5 {[%clk 0:02:38]}  d5 {[%clk 0:02:21]} 15. Ne6 {[%clk 0:02:32]}  Qd7 {[%clk 0:02:21]} 16. Nxf8 {[%clk 0:02:30]}  Rxf8 {[%clk 0:02:22]} 17. Bf1 {[%clk 0:02:29]}  Bd6 {[%clk 0:02:22]} 18. Be3 {[%clk 0:02:27]}  Ne7 {[%clk 0:02:18]} 19. Qd2 {[%clk 0:02:19]}  c6 {[%clk 0:02:12]} 20. Bf4 {[%clk 0:02:09]}  Ne8 {[%clk 0:02:02]} 21. Bxd6 {[%clk 0:02:07]}  Nxd6 {[%clk 0:02:02]} 22. b3 {[%clk 0:01:38]}  h6 {[%clk 0:02:02]} 23. c4 {[%clk 0:01:37]}  Kh7 {[%clk 0:02:01]} 24. cxd5 {[%clk 0:01:35]}  cxd5 {[%clk 0:01:57]} 25. Rac1 {[%clk 0:01:33]}  Nc6 {[%clk 0:01:49]} 26. Rc5 {[%clk 0:01:28]}  Qf7 {[%clk 0:01:47]} 27. Rec1 {[%clk 0:01:18]}  Qf6 {[%clk 0:01:16]} 28. Rxd5 {[%clk 0:01:10]}  Rd8 {[%clk 0:01:00]} 29. Qe3 {[%clk 0:00:59]}  Nf5 {[%clk 0:00:49]} 30. Rxf5 {[%clk 0:00:26]}  Bxf5 {[%clk 0:00:50]} 31. Nxf5 {[%clk 0:00:23]}  Qxf5 {[%clk 0:00:49]} 32. Rc5 {[%clk 0:00:23]}  Qg6 {[%clk 0:00:47]} 33. d5 {[%clk 0:00:21]}  Ne5 {[%clk 0:00:47]} 34. Kh1 {[%clk 0:00:15]}  b6 {[%clk 0:00:47]} 35. Rc7 {[%clk 0:00:06]}  Rxd5 {[%clk 0:00:47]} 36. Re7 {[%clk 0:00:07]}  Nd3 {[%clk 0:00:36]} 37. Kg1 {[%clk 0:00:04]}  Nc5 {[%clk 0:00:37]} 38. b4 {[%clk 0:00:04]}  Ne6 {[%clk 0:00:37]} 39. Bc4 {[%clk 0:00:03]}  Rd1+ {[%clk 0:00:34]} 40. Kh2 {[%clk 0:00:03]}  Ng5 {[%clk 0:00:33]} 41. Qf4 {[%clk 0:00:03]}  Nf3+ {[%clk 0:00:20]} 42. Qxf3 {[%clk 0:00:03]}  exf3 {[%clk 0:00:19]} 43. g4 {[%clk 0:00:04]}  Qd6+ {[%clk 0:00:19]} 44. Re5 {[%clk 0:00:04]}  Qxe5# {[%clk 0:00:19]} 0-1


[Site "https://www.chess.com"]

[Event "Titled Tuesday Blitz November 07 Late 2023"]
[White "Koziorowicz, Michal"]
[Black "Rustemov, Alexander"]
[WhiteFideId "21809194"]
[BlackFideId "4119002"]
[WhiteElo "2596"]
[BlackElo "2811"]
[Result "0-1"]
[Round "8"]
[TimeControl "180+1"]
[Date "2023.11.07"]
[WhiteClock "0:00:13"]
[BlackClock "0:00:44"]
[Board "22"]

1. e4 {[%clk 0:03:00]}  e6 {[%clk 0:02:59]} 2. d4 {[%clk 0:03:00]}  d5 {[%clk 0:02:59]} 3. Nc3 {[%clk 0:03:00]}  dxe4 {[%clk 0:02:59]} 4. Nxe4 {[%clk 0:03:00]}  Bd7 {[%clk 0:02:59]} 5. Bd3 {[%clk 0:02:59]}  Bc6 {[%clk 0:02:59]} 6. Nf3 {[%clk 0:03:00]}  Nd7 {[%clk 0:02:58]} 7. O-O {[%clk 0:02:58]}  Ngf6 {[%clk 0:02:58]} 8. Ned2 {[%clk 0:02:57]}  Be7 {[%clk 0:02:57]} 9. c3 {[%clk 0:02:57]}  O-O {[%clk 0:02:57]} 10. Re1 {[%clk 0:02:57]}  b6 {[%clk 0:02:56]} 11. Nf1 {[%clk 0:02:55]}  Bb7 {[%clk 0:02:55]} 12. Ng3 {[%clk 0:02:54]}  c5 {[%clk 0:02:54]} 13. Be3 {[%clk 0:02:30]}  Qc7 {[%clk 0:02:33]} 14. Qd2 {[%clk 0:02:10]}  Bxf3 {[%clk 0:02:28]} 15. gxf3 {[%clk 0:02:09]}  cxd4 {[%clk 0:02:19]} 16. Bxd4 {[%clk 0:02:08]}  Bc5 {[%clk 0:02:10]} 17. Bxf6 {[%clk 0:02:03]}  Nxf6 {[%clk 0:02:09]} 18. Ne4 {[%clk 0:02:04]}  Nd5 {[%clk 0:02:00]} 19. Qg5 {[%clk 0:01:48]}  Be7 {[%clk 0:01:55]} 20. Qh5 {[%clk 0:01:43]}  g6 {[%clk 0:01:54]} 21. Qh3 {[%clk 0:01:06]}  Nf4 {[%clk 0:01:53]} 22. Qg3 {[%clk 0:01:06]}  Rad8 {[%clk 0:01:42]} 23. Bf1 {[%clk 0:00:50]}  Kg7 {[%clk 0:01:31]} 24. h3 {[%clk 0:00:48]}  h6 {[%clk 0:01:27]} 25. c4 {[%clk 0:00:47]}  g5 {[%clk 0:01:23]} 26. Rac1 {[%clk 0:00:40]}  f5 {[%clk 0:01:19]} 27. Nc3 {[%clk 0:00:39]}  Rd2 {[%clk 0:01:18]} 28. Rcd1 {[%clk 0:00:35]}  Rfd8 {[%clk 0:01:16]} 29. h4 {[%clk 0:00:31]}  Bc5 {[%clk 0:01:04]} 30. Rxd2 {[%clk 0:00:23]}  Rxd2 {[%clk 0:01:05]} 31. Re3 {[%clk 0:00:23]}  Kg6 {[%clk 0:00:56]} 32. hxg5 {[%clk 0:00:21]}  hxg5 {[%clk 0:00:57]} 33. b4 {[%clk 0:00:18]}  Bxb4 {[%clk 0:00:54]} 34. Ne2 {[%clk 0:00:18]}  Nxe2+ {[%clk 0:00:44]} 35. Bxe2 {[%clk 0:00:16]}  Qxg3+ {[%clk 0:00:44]} 36. fxg3 {[%clk 0:00:13]}  Bc5 {[%clk 0:00:44]} 0-1


[Site "https://www.chess.com"]

[Event "Titled Tuesday Blitz November 07 Late 2023"]
[White "Ghasi, Ameet K"]
[Black "Santos Flores, Alberto"]
[WhiteFideId "409200"]
[BlackFideId "3601234"]
[WhiteElo "2810"]
[BlackElo "2555"]
[Result "1-0"]
[Round "8"]
[TimeControl "180+1"]
[Date "2023.11.07"]
[WhiteClock "0:01:19"]
[BlackClock "0:00:19"]
[Board "23"]

1. g3 {[%clk 0:03:00]}  d5 {[%clk 0:03:00]} 2. Bg2 {[%clk 0:03:01]}  Nf6 {[%clk 0:03:00]} 3. d3 {[%clk 0:03:02]}  Bf5 {[%clk 0:02:59]} 4. h3 {[%clk 0:03:01]}  c6 {[%clk 0:02:59]} 5. b3 {[%clk 0:03:01]}  e6 {[%clk 0:02:58]} 6. Bb2 {[%clk 0:03:02]}  Nbd7 {[%clk 0:02:57]} 7. Nd2 {[%clk 0:03:02]}  h6 {[%clk 0:02:51]} 8. e4 {[%clk 0:03:02]}  dxe4 {[%clk 0:02:52]} 9. dxe4 {[%clk 0:03:03]}  Bh7 {[%clk 0:02:52]} 10. Qe2 {[%clk 0:03:03]}  Bc5 {[%clk 0:02:50]} 11. e5 {[%clk 0:02:57]}  Nd5 {[%clk 0:02:49]} 12. Be4 {[%clk 0:02:35]}  Bxe4 {[%clk 0:02:47]} 13. Nxe4 {[%clk 0:02:36]}  Bb4+ {[%clk 0:02:46]} 14. c3 {[%clk 0:02:36]}  Be7 {[%clk 0:02:46]} 15. c4 {[%clk 0:02:35]}  Nb4 {[%clk 0:02:15]} 16. a3 {[%clk 0:02:35]}  Na6 {[%clk 0:02:06]} 17. b4 {[%clk 0:02:35]}  Qc7 {[%clk 0:02:01]} 18. Nf3 {[%clk 0:02:25]}  c5 {[%clk 0:01:48]} 19. b5 {[%clk 0:02:24]}  Nab8 {[%clk 0:01:48]} 20. Nd6+ {[%clk 0:02:21]}  Bxd6 {[%clk 0:01:47]} 21. exd6 {[%clk 0:02:22]}  Qxd6 {[%clk 0:01:47]} 22. Bxg7 {[%clk 0:02:22]}  Rh7 {[%clk 0:01:28]} 23. Rd1 {[%clk 0:02:21]}  Qe7 {[%clk 0:01:22]} 24. Bc3 {[%clk 0:02:09]}  Nf6 {[%clk 0:01:16]} 25. Bxf6 {[%clk 0:02:01]}  Qxf6 {[%clk 0:01:16]} 26. Qe4 {[%clk 0:02:01]}  Nd7 {[%clk 0:01:02]} 27. Rxd7 {[%clk 0:01:57]}  Kxd7 {[%clk 0:01:00]} 28. Qxb7+ {[%clk 0:01:56]}  Ke8 {[%clk 0:00:58]} 29. Qxa8+ {[%clk 0:01:56]}  Ke7 {[%clk 0:00:59]} 30. O-O {[%clk 0:01:54]}  Rg7 {[%clk 0:00:56]} 31. Qxa7+ {[%clk 0:01:53]}  Kf8 {[%clk 0:00:56]} 32. Qb8+ {[%clk 0:01:52]}  Ke7 {[%clk 0:00:56]} 33. Qb7+ {[%clk 0:01:52]}  Kf8 {[%clk 0:00:56]} 34. Rd1 {[%clk 0:01:39]}  Kg8 {[%clk 0:00:56]} 35. a4 {[%clk 0:01:36]}  h5 {[%clk 0:00:52]} 36. h4 {[%clk 0:01:34]}  Rg4 {[%clk 0:00:47]} 37. a5 {[%clk 0:01:31]}  Rxc4 {[%clk 0:00:47]} 38. a6 {[%clk 0:01:29]}  Ra4 {[%clk 0:00:34]} 39. a7 {[%clk 0:01:28]}  Rxa7 {[%clk 0:00:29]} 40. Qxa7 {[%clk 0:01:26]}  Qxf3 {[%clk 0:00:30]} 41. Qb8+ {[%clk 0:01:21]}  Kh7 {[%clk 0:00:28]} 42. Re1 {[%clk 0:01:20]}  c4 {[%clk 0:00:19]} 43. Qf4 {[%clk 0:01:19]} 1-0


[Site "https://www.chess.com"]